bitfinex-derivatives/quotes_BNBF0:USTF0_20250302
["timestamp","ask_amount","ask_price","bid_price","bid_amount"]
[1740885375741,1.71866705,607.9,607.23,0.32936449]
[1740885376049,2.92424331,607.9,607.23,0.32936449]
[1740885376438,3.13449829,607.89,607.23,0.32936449]
[1740885377346,3.13449829,607.88,607.23,0.32936449]
[1740885377944,1.20557626,607.87,607.23,0.32936449]
[1740885378646,1.71866705,607.9,607.23,0.32936449]
[1740885381748,0.277,607.92,607.23,0.32936449]
[1740885384048,1.20557626,607.91,607.23,0.32936449]
[1740885385044,1.20557626,607.9,607.23,0.32936449]
[1740885385449,1.20557626,607.9,606.53,1.21792817]
[1740885385944,1.6461632,607.89,606.53,1.21792817]
[1740885386150,6.9229248,607.89,606.55,0.32973374]
[1740885386352,5.71734854,607.88,606.55,0.32973374]
[1740885386651,5.71734854,607.87,606.55,0.32973374]
[1740885386845,5.71734854,607.86,606.55,0.32973374]
[1740885387048,5.71734854,607.85,606.55,0.32973374]
[1740885387249,1.7195021,607.86,606.55,0.32973374]
[1740885387250,8.85184683,607.84,606.55,0.32973374]
[1740885387550,5.71734854,607.83,606.55,0.32973374]
[1740885387750,5.71734854,607.82,606.55,0.32973374]
[1740885387948,5.71734854,607.81,606.55,0.32973374]
[1740885388146,3.13449829,607.82,606.55,0.32973374]
[1740885388147,5.71734854,607.8,606.55,0.32973374]
[1740885388346,5.71734854,607.79,606.55,0.32973374]
[1740885388552,3.13449829,607.82,606.55,0.32973374]
[1740885388553,5.71734854,607.78,606.55,0.32973374]
[1740885388751,5.71734854,607.77,606.55,0.32973374]
[1740885388949,5.71734854,607.76,606.55,0.32973374]
[1740885389254,4.28008642,607.75,606.55,0.32973374]
[1740885389454,4.28008642,607.74,606.55,0.32973374]
[1740885389647,4.28008642,607.73,606.55,0.32973374]
[1740885389851,1.6461632,607.72,606.55,0.32973374]
[1740885390554,3.13449829,607.71,606.55,0.32973374]
[1740885390755,3.41249829,607.71,606.55,0.32973374]
[1740885391053,1.6467679,607.7,606.55,0.32973374]
[1740885392458,5.13241114,607.71,606.55,0.32973374]
[1740885393157,1.64673169,607.7,606.55,0.32973374]
[1740885393555,1.20557626,607.69,606.55,0.32973374]
[1740885393755,2.92570873,607.69,606.55,0.32973374]
[1740885394356,1.20557626,607.68,606.55,0.32973374]
[1740885395053,1.20557626,607.67,606.55,0.32973374]
[1740885395758,1.20557626,607.66,606.55,0.32973374]
[1740885396158,1.20557626,607.65,606.55,0.32973374]
[1740885396959,2.92574416,607.64,606.55,0.32973374]
[1740885397757,1.20557626,607.63,606.55,0.32973374]
[1740885398562,1.20557626,607.62,606.55,0.32973374]
[1740885399362,1.20557626,607.61,606.55,0.32973374]
[1740885400065,2.9258221,607.6,606.55,0.32973374]
[1740885400666,1.20557626,607.59,606.55,0.32973374]
[1740885401167,1.20557626,607.58,606.55,0.32973374]
[1740885401961,1.20557626,607.57,606.55,0.32973374]
[1740885402768,1.20557626,607.56,606.55,0.32973374]
[1740885403764,1.20557626,607.55,606.55,0.32973374]
[1740885404167,1.20557626,607.54,606.55,0.32973374]
[1740885404867,1.20557626,607.53,606.55,0.32973374]
[1740885405766,1.20557626,607.59,606.55,0.32973374]
[1740885406468,1.72024584,607.6,606.55,0.32973374]
[1740885408571,1.20557626,607.68,606.55,0.32973374]
[1740885408768,1.72027419,607.59,606.55,0.32973374]
[1740885409174,3.13449829,607.66,606.55,0.32973374]
[1740885409369,0.278,607.71,606.55,0.32973374]
[1740885409370,2.92557412,607.58,606.55,0.32973374]
[1740885409567,1.20557626,607.58,606.55,0.32973374]
[1740885409771,1.72000494,607.57,606.55,0.32973374]
[1740885411676,1.20557626,607.67,606.55,0.32973374]
[1740885411976,0.278,607.71,606.55,0.32973374]
[1740885411977,1.71995535,607.56,606.55,0.32973374]
[1740885412175,1.6467503,607.65,606.55,0.32973374]
[1740885412373,2.92558829,607.66,606.55,0.32973374]
[1740885412677,3.13449829,607.64,606.55,0.32973374]
[1740885412879,1.6467503,607.63,606.55,0.32973374]
[1740885413071,1.6467503,607.64,606.55,0.32973374]
[1740885413377,3.13449829,607.63,606.55,0.32973374]
[1740885413571,1.6469444,607.62,606.55,0.32973374]
[1740885413771,3.13449829,607.61,606.55,0.32973374]
[1740885414074,1.64688371,607.6,606.55,0.32973374]
[1740885414271,2.85245997,607.6,606.55,0.32973374]
[1740885414474,1.20557626,607.6,606.55,0.32973374]
[1740885414874,1.20557626,607.59,606.55,0.32973374]
[1740885415377,1.20557626,607.58,606.55,0.32973374]
[1740885415877,1.20557626,607.57,606.55,0.32973374]
[1740885416581,1.20557626,607.61,606.55,0.32973374]
[1740885416976,0.278,607.6,606.55,0.32973374]
[1740885417975,1.71996952,607.59,606.55,0.32973374]
[1740885419975,1.71996952,607.59,606.61,1.21792817]
[1740885420574,0.278,607.6,606.61,1.21792817]
[1740885420774,0.278,607.6,606.63,0.32969025]
[1740885420974,1.71965788,607.59,606.63,0.32969025]
[1740885422081,1.71965788,607.59,606.66,1.21792817]
[1740885422881,1.71965788,607.59,606.67,0.32966851]
[1740885423677,0.278,607.6,606.73,1.21792817]
[1740885423980,2.92528371,607.58,606.74,0.32963048]
[1740885424377,1.20557626,607.57,606.74,0.32963048]
[1740885425576,1.20557626,607.56,606.74,0.32963048]
[1740885426175,1.20557626,607.55,606.74,0.32963048]
[1740885426580,1.20557626,607.54,606.74,0.32963048]
[1740885427177,1.20557626,607.53,606.74,0.32963048]
[1740885427880,1.20557626,607.57,606.74,0.32963048]
[1740885428682,1.20557626,607.56,606.74,0.32963048]
[1740885429586,1.20557626,607.55,606.74,0.32963048]
[1740885430087,2.92548203,607.54,606.74,0.32963048]
[1740885430780,1.20557626,607.53,606.74,0.32963048]
[1740885431488,1.20557626,607.52,606.74,0.32963048]
[1740885432487,1.20557626,607.51,606.74,0.32963048]
[1740885432882,2.9256733,607.51,606.74,0.32963048]
[1740885433082,1.20557626,607.5,606.74,0.32963048]
[1740885433682,1.20557626,607.49,606.74,0.32963048]
[1740885434688,1.20557626,607.48,606.74,0.32963048]
[1740885435282,1.72009704,607.51,606.74,0.32963048]
[1740885435283,1.20557626,607.47,606.74,0.32963048]
[1740885435889,2.92570873,607.46,606.74,0.32963048]
[1740885436790,1.20557626,607.45,606.74,0.32963048]
[1740885437387,1.20557626,607.44,606.74,0.32963048]
[1740885438187,1.20557626,607.43,606.74,0.32963048]
[1740885438592,3.13449829,607.42,606.74,0.32963048]
[1740885439295,3.13449829,607.41,606.74,0.32963048]
[1740885439695,3.13449829,607.4,606.74,0.32963048]
[1740885440393,1.20557626,607.39,606.74,0.32963048]
[1740885441590,3.13449829,607.38,606.74,0.32963048]
[1740885441995,3.36742587,607.37,606.74,0.32963048]
[1740885442296,6.50192416,607.37,606.74,0.32963048]
[1740885442495,1.64714459,607.36,606.74,0.32963048]
[1740885443094,1.92514459,607.35,606.74,0.32963048]
[1740885443294,3.41249829,607.35,606.74,0.32963048]
[1740885443598,1.64714459,607.34,606.74,0.32963048]
[1740885443796,1.64714459,607.33,606.74,0.32963048]
[1740885444095,1.64714459,607.32,606.74,0.32963048]
[1740885444295,1.64714459,607.31,606.74,0.32963048]
[1740885444495,1.64714459,607.3,606.74,0.32963048]
[1740885444691,1.64714459,607.29,606.74,0.32963048]
[1740885444896,1.64714459,607.28,606.74,0.32963048]
[1740885445098,1.64714459,607.27,606.74,0.32963048]
[1740885445299,1.64714459,607.26,606.74,0.32963048]
[1740885445495,1.64714459,607.25,606.74,0.32963048]
[1740885445693,1.64714459,607.24,606.74,0.32963048]
[1740885445897,1.64714459,607.23,606.74,0.32963048]
[1740885446099,3.13449829,607.23,606.74,0.32963048]
[1740885446296,1.498,607.22,606.74,0.32963048]
[1740885446698,4.63249829,607.22,606.74,0.32963048]
[1740885447199,3.13449829,607.21,606.74,0.32963048]
[1740885447999,1.20557626,607.2,606.74,0.32963048]
[1740885448698,1.20557626,607.19,606.74,0.32963048]
[1740885449401,1.498,607.22,606.74,0.32963048]
[1740885450101,1.20954208,607.21,606.74,0.32963048]
[1740885450802,1.498,607.22,606.74,0.32963048]
[1740885461509,0.278,607.21,606.74,0.32963048]
[1740885482822,1.21031727,607.2,606.74,0.32963048]
[1740885483328,1.21031727,607.19,606.74,0.32963048]
[1740885483927,1.21031727,607.18,606.74,0.32963048]
[1740885485023,1.21031727,607.17,606.74,0.32963048]
[1740885485628,2.66831727,607.16,606.74,0.32963048]
[1740885486228,1.21031727,607.15,606.74,0.32963048]
[1740885486422,1.48831727,607.15,606.74,0.32963048]
[1740885486924,1.21031727,607.14,606.74,0.32963048]
[1740885487536,1.21031727,607.13,606.74,0.32963048]
[1740885488037,1.21031727,607.12,606.74,0.32963048]
[1740885489137,1.21031727,607.11,606.74,0.32963048]
[1740885489833,1.21031727,607.1,606.74,0.32963048]
[1740885490040,2.93109475,607.1,606.74,0.32963048]
[1740885490530,1.21031727,607.09,606.74,0.32963048]
[1740885491134,1.72077748,607.1,606.74,0.32963048]
[1740885492639,0.278,607.15,606.74,0.32963048]
[1740885493033,2.93004778,607.14,606.74,0.32963048]
[1740885493739,1.20926321,607.13,606.74,0.32963048]
[1740885494843,1.72078457,607.14,606.74,0.32963048]
[1740885495641,0.278,607.15,606.74,0.32963048]
[1740885495947,1.72089803,607.13,606.74,0.32963048]
[1740885501751,0.278,607.15,606.74,0.32963048]
[1740885502045,1.72087676,607.12,606.74,0.32963048]
[1740885504747,0.278,607.15,606.74,0.32963048]
[1740885505146,1.72081294,607.12,606.74,0.32963048]
[1740885506852,1.20788908,607.11,606.74,0.32963048]
[1740885507448,1.72081294,607.12,606.74,0.32963048]
[1740885507649,0.278,607.15,606.74,0.32963048]
[1740885508050,2.92883788,607.14,606.74,0.32963048]
[1740885508853,1.2078051,607.13,606.74,0.32963048]
[1740885509455,1.2078051,607.12,606.74,0.32963048]
[1740885509855,1.591,607.11,606.74,0.32963048]
[1740885511660,0.278,607.1,606.74,0.32963048]
[1740885513358,1.2073428,607.09,606.74,0.32963048]
[1740885513959,0.278,607.1,606.74,0.32963048]
[1740885523870,1.591,607.11,606.74,0.32963048]
[1740885526569,1.20746032,607.1,606.74,0.32963048]
[1740885526969,1.591,607.11,606.74,0.32963048]
[1740885526970,0.278,607.09,606.74,0.32963048]
[1740885528768,1.20762666,607.08,606.74,0.32963048]
[1740885529367,1.20762666,607.07,606.74,0.32963048]
[1740885529771,0.278,607.09,606.74,0.32963048]
[1740885530872,1.20770051,607.08,606.74,0.32963048]
[1740885531371,1.20770051,607.07,606.74,0.32963048]
[1740885532272,1.20770051,607.06,606.74,0.32963048]
[1740885532772,1.20770051,607.05,606.48,1.21792817]
[1740885533374,1.20770051,607.04,606.48,1.21792817]
[1740885533571,1.20770051,607.04,606.35,1.21792817]
[1740885533770,1.20770051,607.04,606.35,1.54777067]
[1740885534170,3.14092848,607.03,606.35,1.54777067]
[1740885534372,1.64812581,607.02,606.35,1.54777067]
[1740885535173,3.14092848,607.01,606.35,1.54777067]
[1740885535573,3.14092848,607.0,606.35,1.54777067]
[1740885536374,3.14092848,606.99,606.35,0.3298425]
[1740885536672,3.14092848,606.98,606.35,0.3298425]
[1740885537372,3.14092848,606.97,606.35,0.3298425]
[1740885539074,1.20770051,606.96,606.35,0.3298425]
[1740885540572,1.20770051,606.95,606.35,0.3298425]
[1740885541375,1.20770051,606.94,606.35,0.3298425]
[1740885542178,1.20770051,606.93,606.35,0.3298425]
[1740885542977,1.20770051,606.92,606.35,0.3298425]
[1740885543977,1.20770051,606.91,606.35,0.3298425]
[1740885544781,1.20770051,606.9,606.35,0.3298425]
[1740885545673,1.20770051,606.89,606.35,0.3298425]
[1740885546677,1.93485519,606.98,606.35,0.3298425]
[1740885546877,1.72156491,606.88,606.35,0.3298425]
[1740885547074,1.93485519,606.98,606.35,0.3298425]
[1740885547383,1.72157201,606.87,606.35,0.3298425]
[1740885547580,1.64828911,607.06,606.35,0.3298425]
[1740885547774,1.93485519,607.07,606.35,0.3298425]
[1740885547979,3.5831443,607.07,606.35,0.3298425]
[1740885548175,3.14250726,607.05,606.35,0.3298425]
[1740885548376,1.64828911,607.04,606.35,0.3298425]
[1740885548773,1.72141588,607.03,606.35,0.3298425]
[1740885548980,4.86392314,607.03,606.35,0.3298425]
[1740885549173,1.64828911,607.02,606.35,0.3298425]
[1740885549780,3.14250726,607.01,606.35,0.3298425]
[1740885550081,4.86393733,607.01,606.35,0.3298425]
[1740885550482,3.14250726,607.0,606.35,0.3298425]
[1740885550679,1.64834311,606.99,606.35,0.3298425]
[1740885550883,1.64834311,606.98,606.35,0.3298425]
[1740885551084,1.64834311,606.97,606.35,0.3298425]
[1740885551284,3.14250726,606.98,606.35,0.3298425]
[1740885551484,1.64834311,606.97,606.35,0.3298425]
[1740885551683,4.79085037,606.97,606.35,0.3298425]
[1740885551983,1.64834311,606.96,606.35,0.3298425]
[1740885552579,3.14250726,606.97,606.35,0.3298425]
[1740885552780,3.14250726,606.95,606.35,0.3298425]
[1740885552983,4.8639941,606.95,606.35,0.3298425]
[1740885553286,3.14250726,606.94,606.35,0.3298425]
[1740885553885,3.14250726,606.93,606.35,0.3298425]
[1740885554286,1.20765207,606.92,606.35,0.3298425]
[1740885554884,1.20765207,606.91,606.35,0.3298425]
[1740885555588,1.20765207,606.9,606.35,0.3298425]
[1740885555987,1.20765207,606.89,606.35,0.3298425]
[1740885556186,3.20718149,606.89,606.35,0.3298425]
[1740885556590,1.20765207,606.88,606.35,0.3298425]
[1740885557490,1.20765207,606.87,606.35,0.3298425]
[1740885558186,1.99952942,606.89,606.35,0.3298425]
[1740885558691,0.278,606.89,606.35,0.3298425]
[1740885558891,1.72146555,606.88,606.35,0.3298425]
[1740885560891,0.278,606.89,606.35,0.3298425]
[1740885567194,1.551,606.96,606.35,0.3298425]
[1740885568394,1.20754548,606.95,606.35,0.3298425]
[1740885569293,1.551,606.96,606.35,0.3298425]
[1740885570494,0.278,606.95,606.35,0.3298425]
[1740885581706,0.278,606.95,606.35,1.54777067]
[1740885585809,0.278,606.95,606.35,0.3298425]
[1740885589112,1.72117465,606.94,606.35,0.3298425]
[1740885589812,1.20740814,606.93,606.35,0.3298425]
[1740885590710,1.20740814,606.92,606.35,0.3298425]
[1740885591309,1.72117465,606.94,606.35,0.3298425]
[1740885591310,1.20740814,606.91,606.35,0.3298425]
[1740885592215,3.13945495,606.9,606.35,0.3298425]
[1740885592615,0.278,606.89,606.35,0.3298425]
[1740885593115,1.20740814,606.88,606.35,0.3298425]
[1740885594116,1.20740814,606.87,606.35,0.3298425]
[1740885594817,3.13917778,606.86,606.35,0.3298425]
[1740885595219,4.86064333,606.86,606.35,0.3298425]
[1740885595617,3.13917778,606.85,606.35,0.3298425]
[1740885596417,1.20740814,606.84,606.35,0.3298425]
[1740885597018,1.20740814,606.83,606.35,0.3298425]
[1740885597636,0.278,606.89,606.35,0.3298425]
[1740885598121,1.72139459,606.88,606.35,0.3298425]
[1740885598518,1.207646,606.87,606.35,0.3298425]
[1740885599117,1.104,606.86,606.35,0.3298425]
[1740885599323,2.311646,606.86,606.35,0.3298425]
[1740885600220,1.207646,606.85,606.35,0.3298425]
[1740885601218,1.104,606.86,606.35,0.3298425]
[1740885604118,1.20798436,606.85,606.35,0.3298425]
[1740885604624,1.20798436,606.84,606.35,0.3298425]
[1740885605324,1.20798436,606.83,606.35,0.3298425]
[1740885605921,1.20798436,606.82,606.35,0.3298425]
[1740885606424,1.20798436,606.81,606.35,0.3298425]
[1740885607224,1.20798436,606.8,606.35,0.3298425]
[1740885607827,0.278,606.79,606.35,0.3298425]
[1740885608025,1.48598436,606.79,606.35,0.3298425]
[1740885608625,1.20798436,606.78,606.35,0.3298425]
[1740885609328,1.20798436,606.77,606.35,0.3298425]
[1740885609922,0.278,606.79,606.35,0.3298425]
[1740885610326,1.20755536,606.78,606.35,0.3298425]
[1740885611222,0.278,606.79,606.35,0.3298425]
[1740885622930,1.104,606.86,606.35,0.3298425]
[1740885625135,1.72130945,606.9,606.35,0.3298425]
[1740885625734,1.20617154,606.89,606.35,0.3298425]
[1740885626139,0.277,606.88,606.35,0.3298425]
[1740885626334,2.73817154,606.88,606.35,0.3298425]
[1740885627036,1.20617154,606.87,606.35,0.3298425]
[1740885627438,1.20617154,606.86,606.35,0.3298425]
[1740885627841,1.20617154,606.85,606.35,0.3298425]
[1740885628038,2.92761581,606.85,606.35,0.3298425]
[1740885628233,1.20617154,606.84,606.35,0.3298425]
[1740885629035,1.20617154,606.83,606.35,0.3298425]
[1740885629633,1.72144427,606.85,606.35,0.3298425]
[1740885630140,1.20498156,606.84,606.35,0.3298425]
[1740885630639,1.20498156,606.83,606.35,0.3298425]
[1740885631540,1.20498156,606.82,606.35,0.3298425]
[1740885632139,1.20498156,606.81,606.35,0.3298425]
[1740885632740,1.72141588,606.84,606.35,0.3298425]
[1740885633646,1.20485465,606.83,606.35,0.3298425]
[1740885634246,1.72143717,606.84,606.35,0.3298425]
[1740885635850,1.20535408,606.83,606.35,0.3298425]
[1740885636750,1.532,606.88,606.35,0.3298425]
[1740885637143,1.20548839,606.87,606.35,0.3298425]
[1740885637344,2.92689718,606.87,606.35,0.3298425]
[1740885637851,3.1346829,606.86,606.35,0.3298425]
[1740885638443,1.20548839,606.85,606.35,0.3298425]
[1740885639052,3.13492464,606.84,606.35,0.3298425]
[1740885639647,1.20548839,606.83,606.35,0.3298425]
[1740885641051,1.20548839,606.82,606.35,0.3298425]
[1740885641952,1.20548839,606.81,606.35,0.3298425]
[1740885642750,3.13627125,606.8,606.35,0.3298425]
[1740885643350,0.277,606.79,606.35,0.3298425]
[1740885643549,1.48248839,606.79,606.35,0.3298425]
[1740885644055,1.20548839,606.78,606.35,0.3298425]
[1740885644757,1.20548839,606.77,606.35,0.3298425]
[1740885645257,1.20548839,606.76,606.35,0.3298425]
[1740885646257,0.277,606.79,606.35,0.3298425]
[1740885646258,1.20548839,606.75,606.35,0.3298425]
[1740885646958,1.20548839,606.74,606.35,0.3298425]
[1740885647553,1.20548839,606.73,606.35,0.3298425]
[1740885648152,1.20548839,606.72,606.35,0.3298425]
[1740885648656,1.99862879,606.79,606.35,0.3298425]
[1740885648855,0.277,606.79,606.35,0.3298425]
[1740885649360,1.20796622,606.78,606.35,0.3298425]
[1740885650258,1.20796622,606.77,606.35,0.3298425]
[1740885650955,1.20796622,606.76,606.35,0.3298425]
[1740885651555,1.20796622,606.75,606.35,0.3298425]
[1740885652254,1.20796622,606.74,606.35,0.3298425]
[1740885653161,1.20796622,606.73,606.35,0.3298425]
[1740885653660,1.99862879,606.79,606.35,0.3298425]
[1740885654562,1.20806429,606.78,606.35,0.3298425]
[1740885655262,1.20806429,606.77,606.35,0.3298425]
[1740885656257,1.20806429,606.76,606.35,0.3298425]
[1740885656659,3.14076275,606.75,606.35,0.3298425]
[1740885657365,1.20806429,606.74,606.35,0.3298425]
[1740885658264,1.20806429,606.73,606.35,0.3298425]
[1740885658765,1.20806429,606.72,606.35,0.3298425]
[1740885659264,1.20806429,606.71,606.35,0.3298425]
[1740885659768,1.9985862,606.79,606.35,0.3298425]
[1740885659769,1.20806429,606.7,606.35,0.3298425]
[1740885660771,1.20806429,606.69,606.35,0.3298425]
[1740885661576,1.9985862,606.79,606.35,0.3298425]
[1740885662266,3.13978917,606.78,606.35,0.3298425]
[1740885662871,3.13978917,606.77,606.35,0.3298425]
[1740885663971,1.72163588,606.76,606.35,0.3298425]
[1740885664171,4.86142505,606.76,606.35,0.3298425]
[1740885664870,1.20761122,606.75,606.35,0.3298425]
[1740885665775,1.20761122,606.74,606.35,0.3298425]
[1740885666374,1.20761122,606.73,606.35,0.3298425]
[1740885666878,0.277,606.79,606.35,0.3298425]
[1740885667179,1.72166428,606.75,606.35,0.3298425]
[1740885667770,1.20735833,606.74,606.35,0.3298425]
[1740885668776,1.20735833,606.73,606.35,0.3298425]
[1740885669574,1.20735833,606.72,606.35,0.3298425]
[1740885670676,1.72162879,606.75,606.35,0.3298425]
[1740885671075,1.20770463,606.74,606.35,0.3298425]
[1740885672075,3.13968355,606.73,606.35,0.3298425]
[1740885672477,1.20770463,606.72,606.35,0.3298425]
[1740885672976,1.20770463,606.71,606.35,0.3298425]
[1740885673676,1.48470463,606.7,606.35,0.3298425]
[1740885674470,1.20770463,606.69,606.35,0.3298425]
[1740885674677,3.13914591,606.69,606.35,0.3298425]
[1740885675172,1.64889414,606.68,606.35,0.3298425]
[1740885675377,1.64889414,606.67,606.35,0.3298425]
[1740885675576,1.64889414,606.66,606.35,0.3298425]
[1740885675776,1.64889414,606.65,606.35,0.3298425]
[1740885675976,1.64889414,606.64,606.35,0.3298425]
[1740885676177,4.78804005,606.63,606.35,0.3298425]
[1740885676378,3.13914591,606.63,606.35,0.3298425]
[1740885676878,3.13914591,606.62,606.35,0.3298425]
[1740885677579,1.20770463,606.61,606.35,0.3298425]
[1740885678674,1.20770463,606.6,606.35,0.3298425]
[1740885679073,2.93001507,606.6,606.35,0.3298425]
[1740885679476,1.20770463,606.59,606.35,0.3298425]
[1740885680676,1.20770463,606.58,606.35,0.3298425]
[1740885681180,0.277,606.7,606.35,0.3298425]
[1740885681980,1.20543919,606.69,606.35,0.3298425]
[1740885683182,1.20543919,606.68,606.35,0.3298425]
[1740885683584,1.146,606.67,606.35,0.3298425]
[1740885683876,2.35143919,606.67,606.35,0.3298425]
[1740885684477,1.146,606.67,606.35,0.3298425]
[1740885687882,0.277,606.66,606.35,0.3298425]
[1740885706798,1.095,606.65,606.35,0.3298425]
[1740885713010,0.277,606.64,606.35,0.3298425]
[1740885740229,1.095,606.65,606.35,0.3298425]
[1740885743328,0.277,606.64,606.35,0.3298425]
[1740885749134,1.20972185,606.63,606.35,0.3298425]
[1740885749936,0.277,606.64,606.35,0.3298425]
[1740885751340,1.20964631,606.63,606.35,0.3298425]
[1740885752141,1.20964631,606.62,606.35,0.3298425]
[1740885752739,0.277,606.64,606.35,0.3298425]
[1740885753840,1.20938005,606.63,606.35,0.3298425]
[1740885754539,1.20938005,606.62,606.35,0.3298425]
[1740885754936,2.56938005,606.62,606.35,0.3298425]
[1740885755737,1.36,606.62,606.35,0.3298425]
[1740885767447,1.20843713,606.61,606.35,0.3298425]
[1740885768148,1.20843713,606.6,606.35,0.3298425]
[1740885768752,1.637,606.62,606.35,0.3298425]
[1740885769155,1.20859359,606.61,606.35,0.3298425]
[1740885769747,1.20859359,606.6,606.35,0.3298425]
[1740885770347,1.20859359,606.59,606.35,0.3298425]
[1740885771250,1.637,606.62,606.35,0.3298425]
[1740885771755,1.20859748,606.61,606.35,0.3298425]
[1740885772649,1.637,606.62,606.35,0.3298425]
[1740885774255,1.20850738,606.61,606.35,0.3298425]
[1740885775056,1.637,606.62,606.35,0.3298425]
[1740885783261,1.2083292,606.61,606.35,0.3298425]
[1740885783963,1.637,606.62,606.35,0.3298425]
[1740885785257,1.2083378,606.61,606.35,0.3298425]
[1740885785658,1.637,606.62,606.35,0.3298425]
[1740885787266,1.20829879,606.61,606.35,0.3298425]
[1740885788066,1.20829879,606.6,606.35,0.3298425]
[1740885789166,1.637,606.62,606.35,0.3298425]
[1740885789867,1.20868923,606.61,606.35,0.3298425]
[1740885790868,1.637,606.62,606.35,0.3298425]
[1740885798169,1.20935925,606.61,606.35,0.3298425]
[1740885798877,1.20935925,606.61,606.0,1.21792817]
[1740885799069,4.792811,606.6,606.0,1.21792817]
[1740885799271,1.64909047,606.59,606.0,1.21792817]
[1740885799474,1.64909047,606.58,606.0,1.21792817]
[1740885799675,1.64909047,606.57,606.0,1.21792817]
[1740885799977,4.792811,606.56,606.0,1.21792817]
[1740885800175,3.14372053,606.56,606.0,1.21792817]
[1740885800371,1.477,606.55,606.0,1.21792817]
[1740885800675,1.477,606.55,605.77,1.21792817]
[1740885800974,4.62072053,606.55,605.78,0.33015286]
[1740885801171,3.14372053,606.54,605.78,0.33015286]
[1740885801776,1.20935925,606.53,605.78,0.33015286]
[1740885801977,2.93176203,606.53,605.78,0.33015286]
[1740885802373,0.276,606.52,605.78,0.33015286]
[1740885802780,1.20935925,606.51,605.78,0.33015286]
[1740885803280,0.276,606.52,605.78,0.33015286]
[1740885803281,1.20935925,606.5,605.78,0.33015286]
[1740885804479,1.20935925,606.49,605.78,0.33015286]
[1740885805181,0.276,606.52,605.78,0.33015286]
[1740885805980,1.20797603,606.51,605.78,0.33015286]
[1740885806574,0.276,606.52,605.78,0.33015286]
[1740885812978,0.276,606.52,605.89,1.21792817]
[1740885813182,0.276,606.52,605.9,0.33008747]
[1740885814782,0.276,606.52,605.9,1.54801564]
[1740885816791,1.347,606.51,605.9,1.54801564]
[1740885817385,1.347,606.51,605.9,0.33008747]
[1740885820584,0.276,606.5,605.9,0.33008747]
[1740885831791,1.347,606.51,605.9,0.33008747]
[1740885834898,0.276,606.5,605.9,0.33008747]
[1740885848607,0.26611251,606.5,605.9,0.33008747]
[1740885855903,1.347,606.51,605.9,0.33008747]
[1740885859014,1.63883729,606.97,605.9,0.33008747]
[1740885859317,1.72236727,606.62,605.9,0.33008747]
[1740885859512,5.73520142,606.95,605.9,0.33008747]
[1740885859711,1.20938771,606.61,605.9,0.33008747]
[1740885859911,1.063,606.6,605.9,0.33008747]
[1740885861916,0.266,606.59,605.9,0.33008747]
[1740885866823,0.266,606.59,606.04,1.21792817]
[1740885868627,0.266,606.59,606.06,1.21792817]
[1740885871131,0.266,606.59,606.1,1.21792817]
[1740885873533,1.21012685,606.58,606.1,1.21792817]
[1740885873729,1.21012685,606.58,606.11,1.21792817]
[1740885874528,1.21012685,606.57,606.11,1.21792817]
[1740885875330,1.21012685,606.56,606.11,1.21792817]
[1740885875734,1.063,606.6,606.11,1.21792817]
[1740885876534,1.21047441,606.59,606.11,1.21792817]
[1740885877235,1.21047441,606.58,606.11,1.21792817]
[1740885877633,1.21047441,606.58,606.06,1.21792817]
[1740885877835,1.063,606.6,606.06,1.21792817]
[1740885878233,0.266,606.59,606.06,1.21792817]
[1740885879436,1.21085958,606.58,606.06,1.21792817]
[1740885880239,1.21085958,606.57,606.06,1.21792817]
[1740885880736,1.21085958,606.56,606.06,1.21792817]
[1740885881539,0.266,606.59,606.06,1.21792817]
[1740885881933,1.21108853,606.58,606.06,1.21792817]
[1740885882534,1.21108853,606.58,606.07,1.21792817]
[1740885883240,0.266,606.59,606.07,1.21792817]
[1740885884436,1.21138218,606.58,606.07,1.21792817]
[1740885885237,1.64917465,606.57,606.07,1.21792817]
[1740885885443,1.64917465,606.56,606.07,1.21792817]
[1740885885642,1.64917465,606.55,606.07,1.21792817]
[1740885885843,1.21138218,606.57,606.07,1.21792817]
[1740885886049,1.72223941,606.54,606.07,1.21792817]
[1740885887046,1.72223941,606.54,605.9,0.33008747]
[1740885887944,3.14871126,606.53,605.9,0.33008747]
[1740885888145,1.21138218,606.53,605.9,0.33008747]
[1740885888544,2.86064492,606.52,605.9,0.33008747]
[1740885888845,1.64926274,606.51,605.9,0.33008747]
[1740885889044,4.87037677,606.51,605.9,0.33008747]
[1740885890046,1.21138218,606.5,605.9,0.33008747]
[1740885890643,1.21138218,606.49,605.9,0.33008747]
[1740885891446,1.21138218,606.48,605.9,0.33008747]
[1740885892646,1.21138218,606.47,605.9,0.33008747]
[1740885893448,1.21138218,606.46,605.9,0.33008747]
[1740885894048,1.72258751,606.49,605.9,0.33008747]
[1740885894653,1.20959184,606.48,605.9,0.33008747]
[1740885895555,1.20959184,606.47,605.9,0.33008747]